bitfinex/quotes_ETHUSD_20250801
["timestamp","ask_amount","ask_price","bid_price","bid_amount"]
[1754080877818,4.742,3516.4,3516.3,12.961743]
[1754080877982,4.742,3516.4,3516.3,12.348262]
[1754080878432,5.23044,3516.4,3515.7,6.130022]
[1754080878583,5.23044,3516.4,3515.9,2.405952]
[1754080878790,0.1424,3516.0,3515.9,4.70662196]
[1754080879013,4.7334,3516.0,3515.9,7.562318]
[1754080879636,4.7334,3516.0,3515.9,6.157418]
[1754080879838,4.7334,3516.0,3515.9,10.718418]
[1754080880498,4.7334,3516.0,3515.9,3.0]
[1754080880681,5.20674,3516.0,3515.9,3.0]
[1754080881104,8.05088106,3516.0,3515.9,3.0]
[1754080881517,2.84446657,3515.6,3515.1,4.202931]
[1754080881723,4.586,3515.5,3515.4,3.0]
[1754080881922,4.7284,3515.5,3515.4,12.379763]
[1754080882456,0.1424,3515.6,3515.5,35.84454558]
[1754080882608,0.1424,3515.6,3515.5,38.16444558]
[1754080882799,4.586,3516.1,3516.0,35.84414106]
[1754080882999,4.586,3516.1,3516.0,38.16404106]
[1754080883203,4.73,3516.4,3516.3,32.84389841]
[1754080883405,4.73,3516.4,3516.3,30.05958641]
[1754080883605,4.73,3516.4,3516.3,10.90844241]
[1754080883846,0.14,3516.4,3516.3,17.38584]
[1754080884010,0.14,3516.4,3516.3,18.74633541]
[1754080884783,0.14,3516.4,3516.3,17.210869]
[1754080884942,4.727,3516.4,3516.3,9.216062]
[1754080885115,4.587,3516.4,3516.3,12.05996041]
[1754080885315,4.587,3516.4,3516.3,15.60009645]
[1754080885509,0.14,3516.8,3516.7,32.86220094]
[1754080885704,0.14,3516.9,3516.8,33.24891008]
[1754080886044,0.141,3517.2,3517.1,26.40395154]
[1754080886244,0.001,3517.6,3517.4,35.84300904]
[1754080886406,0.001,3517.6,3517.4,5.84300904]
[1754080886605,0.001,3517.6,3517.4,35.98540904]
[1754080886840,0.001,3517.6,3517.4,39.7335471]
[1754080889868,0.001,3517.9,3517.8,32.84268576]
[1754080890020,0.1424,3518.4,3518.3,35.84228178]
[1754080890216,0.1424,3518.4,3518.3,24.04251678]
[1754080890425,0.1424,3518.4,3518.3,8.74418878]
[1754080890718,4.7194,3518.8,3518.5,9.44456]
[1754080890948,4.577,3518.8,3518.7,10.0182]
[1754080891545,6.4534,3518.8,3518.7,10.0182]
[1754080891719,4.577,3518.8,3518.7,10.0182]
[1754080891919,4.577,3518.8,3518.7,33.0]
[1754080892363,4.577,3518.8,3518.7,35.84195867]
[1754080892571,4.577,3518.8,3518.7,34.30347567]
[1754080892862,4.577,3518.8,3518.7,31.65540121]
[1754080893065,4.577,3518.8,3518.7,30.99100121]
[1754080893224,4.577,3518.8,3518.7,29.46854867]
[1754080893967,4.577,3518.8,3518.7,16.14434667]
[1754080894465,4.577,3518.8,3518.7,13.302388]
[1754080894627,4.577,3518.8,3518.7,16.14434667]
[1754080895024,4.577,3518.8,3518.7,5.84195867]
[1754080895361,4.577,3518.8,3518.7,27.86443367]
[1754080895563,4.577,3518.8,3518.7,20.341219]
[1754080895746,4.577,3518.8,3518.7,22.49302767]
[1754080896157,4.577,3518.8,3518.7,19.651069]
[1754080896370,4.577,3518.8,3518.7,22.49302767]
[1754080896572,4.577,3518.8,3518.7,16.485922]
[1754080896735,4.577,3518.8,3518.7,9.455642]
[1754080896935,6.4534,3518.8,3518.7,3.0]
[1754080897350,6.4534,3518.8,3518.7,10.145242]
[1754080897545,8.58112488,3518.8,3518.7,3.0]
[1754080897873,11.42300279,3518.8,3518.7,3.0]
[1754080901478,8.58112488,3518.8,3518.7,3.0]
[1754080901681,4.577,3518.8,3518.7,3.0]
[1754080901843,4.577,3518.8,3518.7,7.508655]
[1754080902174,6.832,3518.9,3518.8,6.411214]
[1754080902477,11.385,3518.9,3518.8,6.007173]
[1754080902882,11.385,3518.9,3518.8,14.890882]
[1754080903046,11.385,3518.9,3518.8,13.402948]
[1754080903380,11.385,3518.9,3518.8,10.208863]
[1754080904188,11.385,3518.9,3518.8,9.0028]
[1754080904493,13.2614,3518.9,3518.8,9.0028]
[1754080904693,15.33990121,3518.9,3518.8,3.0]
[1754080904892,18.18169836,3518.9,3518.8,3.0]
[1754080905192,12.99530121,3518.9,3518.8,3.0]
[1754080905351,12.99530121,3518.9,3518.8,11.850326]
[1754080905552,15.83709836,3518.9,3518.8,8.850326]
[1754080905753,15.83709836,3518.9,3518.1,2.84241161]
[1754080905754,15.35040121,3518.9,3518.1,2.248501]
[1754080905969,15.35040121,3518.9,3517.5,1.8435]
[1754080905970,3.93880984,3518.8,3517.5,1.8435]
[1754080906180,2.84228137,3518.4,3517.6,2.84279439]
[1754080906354,6.459,3518.3,3517.9,3.0]
[1754080906556,6.459,3518.3,3517.8,2.409701]
[1754080906557,6.458,3518.2,3517.8,2.409701]
[1754080906778,6.458,3518.2,3517.7,12.380441]
[1754080906985,6.458,3518.2,3517.7,2.84275238]
[1754080907322,4.547,3518.2,3517.4,0.4564]
[1754080907477,6.832,3518.9,3517.4,0.4564]
[1754080907478,4.553,3518.5,3518.2,30.0]
[1754080907785,4.553,3518.5,3518.4,28.39681]
[1754080907993,4.553,3518.5,3518.4,21.053046]
[1754080908288,4.553,3518.5,3518.4,8.142101]
[1754080908589,0.001,3519.3,3518.5,3.0]
[1754080908789,4.553,3519.2,3518.9,2.84172736]
[1754080908949,4.553,3519.2,3519.1,11.80958164]
[1754080909355,4.553,3519.2,3519.1,8.17946964]
[1754080909557,4.553,3519.2,3519.1,12.484243]
[1754080909752,4.553,3519.2,3519.1,14.47537864]
[1754080909956,4.553,3519.2,3519.1,11.633743]
[1754080910493,4.553,3519.2,3519.1,15.184801]
[1754080910920,4.553,3519.2,3519.1,18.02643664]
[1754080911097,0.001,3519.3,3519.2,5.84155489]
[1754080911305,1e-08,3519.3,3519.2,38.14145489]
[1754080911612,1.911,3521.1,3519.5,30.0]
[1754080911765,8.738,3521.7,3521.1,9.764687]
[1754080912103,4.554,3521.6,3521.1,2.392273]
[1754080912322,2.3551,3521.5,3521.1,8.609061]
[1754080912472,5.19480761,3521.5,3521.1,8.609061]
[1754080912663,5.29361297,3521.5,3521.1,8.609061]
[1754080912869,1.911,3521.4,3521.1,8.609061]
[1754080913077,4.553,3521.3,3521.1,6.365594]
[1754080913276,1.911,3521.2,3521.1,7.787299]
[1754080913481,2.3551,3521.2,3521.1,7.787299]
[1754080914069,3.81485018,3521.2,3521.1,7.707013]
[1754080915207,3.81485018,3521.2,3521.1,9.256213]
[1754080915704,3.37075018,3521.2,3521.1,9.256213]
[1754080915909,1.45975018,3521.2,3521.1,9.256213]
[1754080916068,4.553,3521.3,3521.2,9.057912]
[1754080916277,4.553,3521.3,3521.2,8.422912]
[1754080916473,4.553,3521.3,3521.2,6.199912]
[1754080916702,6.464,3521.3,3521.2,6.199912]
[1754080917104,7.34485705,3521.3,3521.2,6.199912]
[1754080917281,7.34485705,3521.3,3521.2,4.76211]
[1754080917805,6.90075705,3521.3,3521.2,4.76211]
[1754080918009,6.464,3521.3,3521.2,4.76211]
[1754080918209,6.464,3521.3,3521.2,6.19991]
[1754080918405,4.553,3521.3,3521.2,6.19991]
[1754080918938,4.553,3521.3,3521.2,12.03985092]
[1754080919087,4.553,3521.3,3521.2,3.0]
[1754080919292,4.553,3521.3,3521.2,27.45213992]
[1754080919519,4.553,3521.3,3521.2,13.04851]
[1754080919831,4.553,3521.3,3521.2,9.59101]
[1754080920025,9.75916027,3521.3,3521.2,7.569412]
[1754080920229,10.20327215,3521.3,3520.9,3.0]
[1754080920429,5.0083,3521.3,3520.9,3.0]
[1754080920629,10.0,3522.6,3521.8,2.83945709]
[1754080920928,4.551,3522.6,3522.5,2.83889283]
[1754080921135,4.551,3522.6,3522.5,38.13879283]
[1754080921289,4.554,3522.8,3522.5,35.2999]
[1754080921495,4.554,3522.7,3522.6,28.32625099]
[1754080921688,4.554,3522.7,3522.6,38.13865687]
[1754080921888,4.554,3522.7,3522.6,36.53042687]
[1754080922130,4.554,3522.7,3522.6,24.924625]
[1754080922353,4.554,3522.7,3522.6,10.667775]
[1754080922628,4.554,3522.7,3522.6,15.683521]
[1754080922934,4.554,3522.7,3522.6,3.0]
[1754080922935,10.94433165,3522.7,3522.6,3.0]
[1754080923137,7.1115,3522.7,3522.6,5.73614]
[1754080923433,4.554,3522.7,3522.6,10.87485224]
[1754080923731,10.001,3523.9,3523.7,2.83792604]
[1754080923936,10.001,3523.9,3523.8,38.1377455]
[1754080923937,0.001,3523.9,3523.8,38.1377455]
[1754080924113,4.573,3523.9,3523.8,38.1377455]
[1754080924308,4.573,3523.9,3523.8,22.7152905]
[1754080924638,4.573,3523.9,3523.8,25.7022075]
[1754080924875,4.573,3523.9,3523.8,9.881457]
[1754080925194,4.573,3523.9,3523.8,3.0]
[1754080925392,4.573,3523.9,3523.8,9.134051]
[1754080925595,6.9281,3523.9,3523.8,3.0]
[1754080925818,2.83785308,3523.8,3523.2,3.0]
[1754080926019,9.76588659,3523.9,3522.9,3.21430154]
[1754080926220,6.9281,3523.9,3523.3,7.518483]
[1754080926431,6.9281,3523.9,3523.3,3.0]
[1754080926618,2.83793175,3523.7,3523.1,3.0]
[1754080926822,6.9231,3523.6,3522.6,30.0]
[1754080927019,6.9231,3523.6,3523.0,6.634079]
[1754080927236,9.76112764,3523.6,3523.0,6.634079]
[1754080927541,6.9231,3523.6,3523.0,3.908273]
[1754080927833,2.83817781,3523.4,3523.3,3.0]
[1754080928036,5.19327781,3523.4,3523.3,7.759396]
[1754080928209,2.3551,3523.4,3522.3,3.0]
[1754080928409,2.83832879,3523.2,3522.6,3.0]
[1754080928612,2.83849683,3523.0,3522.6,5.644601]
[1754080928801,6.475,3522.9,3522.5,8.39598]
[1754080929129,4.564,3522.9,3522.6,7.958555]
[1754080929336,2.461,3523.8,3522.9,21.254007]
[1754080929633,4.562,3523.7,3523.2,18.394302]
[1754080929966,4.562,3523.7,3523.5,3.0]
[1754080930243,4.562,3523.7,3522.7,7.42923704]
[1754080930244,0.55,3523.4,3522.5,2.83883307]
[1754080930450,5.6494183,3523.6,3522.9,2.83854371]
[1754080930647,4.569,3523.3,3522.8,26.84966]
[1754080930826,7.40732518,3523.3,3522.9,3.0]
[1754080931157,9.31831316,3523.3,3523.0,6.0258]
[1754080931452,4.569,3523.3,3523.0,6.0258]
[1754080931648,2.8381135,3523.5,3523.0,6.0258]
[1754080931649,2.83877239,3523.9,3523.3,3.0]
[1754080931972,4.568,3523.8,3523.5,2.495078]
[1754080932116,4.568,3523.8,3523.4,10.189442]
[1754080932515,4.568,3523.8,3523.4,11.562683]
[1754080932716,0.001,3523.9,3523.8,8.499796]
[1754080932951,4.567,3523.9,3523.8,30.0]
[1754080933149,4.567,3523.9,3523.8,26.920692]
[1754080933314,4.567,3523.9,3523.5,5.689417]
[1754080933519,1.911,3523.8,3523.5,4.692501]
[1754080933713,1.911,3523.8,3523.3,3.0]
[1754080934068,4.567,3523.9,3523.7,3.0]
[1754080934772,4.567,3523.9,3523.6,30.0]
[1754080934929,0.001,3523.9,3523.8,38.1377455]
[1754080935256,4.565,3523.9,3523.8,38.1377455]
[1754080935554,1e-08,3523.9,3523.8,36.3034455]
[1754080935755,1e-08,3523.9,3523.8,39.62603938]
[1754080936217,6.819,3526.4,3525.4,30.0]
[1754080936413,6.8688,3526.3,3525.2,3.0]
[1754080936614,2.8364719,3525.6,3525.3,4.949216]
[1754080936858,6.4207,3525.5,3525.3,6.295136]
[1754080937062,4.564,3525.5,3525.3,6.295136]
[1754080937587,4.564,3525.5,3525.3,4.741059]
[1754080937881,4.564,3525.5,3525.3,6.579216]
[1754080938081,4.564,3525.5,3525.2,9.728216]
[1754080938678,4.564,3525.5,3525.2,5.286206]
[1754080938885,4.564,3525.5,3524.8,3.0]
[1754080939057,4.564,3525.5,3525.0,3.0]
[1754080939255,4.564,3525.5,3524.6,1.8765]
[1754080939256,4.564,3525.5,3525.4,3.0]
[1754080939460,4.564,3525.5,3525.4,9.005706]
[1754080939858,4.564,3525.5,3525.4,13.057903]
[1754080940462,4.564,3525.5,3525.4,9.841135]
[1754080940694,9.70527709,3525.5,3525.4,3.0]
[1754080940905,2.83685779,3525.1,3523.8,3.32259388]
[1754080941105,4.563,3525.0,3524.5,3.0]
[1754080941397,4.563,3525.0,3524.9,14.579432]
[1754080941549,4.563,3525.0,3524.9,10.106222]
[1754080941743,6.8678,3525.0,3524.5,6.402201]
[1754080941946,2.3048,3524.9,3524.7,3.0]
[1754080942204,5.14175991,3524.9,3524.8,7.699882]
[1754080942753,5.14175991,3524.9,3523.5,19.267306]
[1754080942754,3.60457854,3524.9,3523.5,19.267306]
[1754080943007,2.8371455,3524.7,3523.7,3.0]
[1754080943147,2.83733886,3524.5,3524.1,3.0]
[1754080943466,1.8567,3524.5,3524.2,2.83791]
[1754080943666,4.562,3524.6,3524.2,2.83791]
[1754080944185,2.3048,3524.5,3524.4,7.600784]
[1754080944595,5.14208188,3524.5,3524.4,3.0]
[1754080944757,5.14208188,3524.5,3524.4,7.540486]
[1754080944981,2.3048,3524.5,3524.4,7.540486]
[1754080945185,5.14208188,3524.5,3524.4,7.540486]
[1754080945385,6.28476803,3524.5,3524.4,7.540486]
[1754080945717,6.28476803,3524.5,3524.4,3.0]
[1754080946337,3.44748615,3524.5,3524.4,3.0]
[1754080946538,4.555,3524.5,3524.4,3.0]
[1754080946735,4.555,3524.5,3524.4,25.997609]
[1754080947288,4.555,3524.5,3524.4,33.0]
[1754080947846,4.555,3524.5,3524.4,12.764107]
[1754080948133,4.555,3524.5,3524.4,15.60146938]
[1754080948287,4.555,3524.5,3524.4,5.83736238]
[1754080948634,4.555,3524.5,3524.4,29.64046]
[1754080948794,1.8567,3524.9,3524.5,3.0]
[1754080948993,4.551,3524.8,3524.7,3.0]
[1754080949220,4.551,3524.8,3524.7,22.794392]
[1754080949384,4.551,3524.8,3524.7,17.535941]
[1754080949586,4.551,3524.8,3524.7,14.052096]
[1754080949816,4.551,3524.8,3524.1,0.002]
[1754080949817,6.4077,3524.8,3524.4,15.747242]
[1754080950045,1.8567,3525.3,3524.7,3.0]
[1754080950203,4.548,3525.2,3525.1,5.83679181]
[1754080950401,4.548,3525.2,3525.1,3.0]
[1754080950605,4.548,3525.2,3525.0,3.0]
[1754080951514,2.3048,3525.1,3524.7,3.0]
[1754080951717,2.3048,3525.1,3524.8,3.0]
[1754080951897,0.4481,3525.1,3525.0,3.0]
[1754080952105,0.4481,3525.1,3525.0,11.18341]
[1754080952507,2.3048,3525.1,3525.0,11.18341]
[1754080952720,5.47221987,3525.2,3524.1,1.8785]
[1754080952721,4.548,3525.2,3524.4,3.0]
[1754080953044,0.001,3525.5,3525.4,2.83655755]
[1754080953190,4.546,3525.5,3525.4,35.17865755]
[1754080953390,4.546,3525.5,3525.4,21.74077255]
[1754080953933,4.546,3525.5,3525.4,5.17865755]
[1754080954132,4.546,3525.5,3525.4,35.17865755]
[1754080954291,4.546,3525.5,3525.4,33.57182455]
[1754080954794,4.546,3525.5,3525.4,5.17865755]
[1754080955128,4.546,3525.5,3525.4,36.97977631]
[1754080955327,4.542,3525.5,3525.4,33.97977631]
[1754080955536,1e-08,3525.5,3525.4,36.97977631]
[1754080955826,1e-08,3525.5,3525.4,45.44449031]
[1754080956533,1e-08,3525.5,3525.4,45.44349031]
[1754080957121,1e-08,3525.5,3525.4,40.90349031]
[1754080957629,1e-08,3525.5,3525.4,45.44149031]
[1754080957993,1e-08,3525.5,3525.4,35.83655755]
[1754080958194,1.85670001,3525.5,3525.4,3.0]
[1754080958417,2.30480001,3525.5,3525.4,3.335526]
[1754080958627,2.30480001,3525.5,3525.0,2.83682341]
[1754080958834,1e-08,3525.5,3525.0,1.8765]
[1754080959037,1e-08,3525.5,3525.4,18.571299]
[1754080959206,1e-08,3525.5,3525.4,22.582424]
[1754080959396,2.30480001,3525.5,3525.4,3.0]
[1754080959897,2.30480001,3525.5,3525.0,19.14246098]
[1754080960131,1e-08,3525.5,3525.4,35.12933755]
[1754080960337,1e-08,3525.5,3525.4,37.47143755]
[1754080960968,1e-08,3525.5,3525.4,35.83655755]
[1754080961171,1e-08,3525.5,3525.4,19.05104955]
[1754080961568,1e-08,3525.5,3525.4,20.92754955]
[1754080961869,1e-08,3525.5,3525.4,23.76956941]
[1754080962068,1e-08,3525.5,3525.4,40.55507741]
[1754080962963,1e-08,3525.5,3525.4,45.09407741]
[1754080963572,1e-08,3525.5,3525.4,45.64407741]
[1754080963882,1e-08,3525.5,3525.4,46.49570141]
[1754080964873,1e-08,3525.5,3525.4,41.40670141]
[1754080965081,1e-08,3525.5,3525.4,40.55507741]
[1754080965379,1e-08,3525.5,3525.4,29.71001741]
[1754080965751,1e-08,3525.5,3525.4,32.10431741]
[1754080965952,1e-08,3525.5,3525.4,29.71001741]
[1754080966136,1e-08,3525.5,3525.4,38.21297741]
[1754080966569,1e-08,3525.5,3525.4,17.34788555]
[1754080966886,2.36550001,3525.5,3525.1,3.109734]
[1754080967097,2.3655,3525.4,3524.5,11.950334]
[1754080967400,0.4414,3525.3,3524.8,3.0]
[1754080967596,2.3655,3525.2,3525.0,3.0]
[1754080967896,1.92410001,3525.5,3525.3,14.568577]
[1754080968075,1.92410001,3525.5,3525.1,22.657438]
[1754080968377,2.3655,3525.4,3525.3,10.141687]
[1754080968741,2.3655,3525.4,3525.3,9.529961]
[1754080970139,2.3655,3525.4,3525.3,10.013961]
[1754080970334,3.05605,3525.4,3525.3,3.0]
[1754080970549,5.89260755,3525.4,3525.3,3.0]
[1754080970973,5.89266937,3525.4,3524.1,0.002]
[1754080971148,5.89266937,3525.4,3524.2,3.124613]
[1754080971149,2.83712421,3524.7,3524.2,3.124613]
[1754080971353,6.9015,3524.6,3524.2,3.124613]
[1754080971574,2.3655,3524.5,3524.4,3.0]
[1754080971872,2.3655,3524.5,3524.4,15.114055]
[1754080972179,2.3655,3524.5,3524.2,12.936359]
[1754080972473,1.9241,3524.4,3524.3,23.561357]
[1754080972675,2.3655,3524.4,3524.2,12.781961]
[1754080972896,2.8375234,3524.2,3524.1,0.002]
[1754080973179,3.3875234,3524.2,3524.1,0.002]
[1754080973379,5.7530234,3524.2,3524.1,0.002]
[1754080973549,7.39085635,3524.2,3524.1,0.002]
[1754080975559,11.93485635,3524.2,3524.1,0.002]
[1754080978386,21.93485635,3524.2,3524.1,0.002]
[1754080978769,19.2976234,3524.2,3524.1,0.002]
[1754080978981,17.3735234,3524.2,3524.1,0.002]
[1754080979181,4.536,3524.2,3524.1,7.885534]
[1754080979506,4.536,3524.2,3524.1,0.002]
[1754080979809,6.814,3524.3,3524.2,22.783016]
[1754080980104,11.35,3524.3,3524.2,9.814714]
[1754080980252,14.18744289,3524.3,3524.2,3.0]
[1754080980458,18.23794289,3524.3,3524.1,0.002]
[1754080980657,2.83776497,3523.9,3523.8,1e-08]
[1754080980881,6.23084621,3523.9,3521.2,1.9448]
[1754080981095,2.83932151,3522.0,3521.8,6.6899]
[1754080981297,2.83945709,3521.8,3521.2,1.9448]
[1754080981504,4.547,3521.9,3521.2,4.9448]
[1754080981703,3.38898431,3522.4,3521.8,14.795937]
[1754080981888,4.552,3522.3,3521.9,3.0]
[1754080982207,4.552,3522.3,3522.0,11.752265]
[1754080982410,6.816,3522.5,3522.1,5.3943]
[1754080982579,4.552,3522.4,3522.3,16.735549]
[1754080982779,6.816,3522.5,3522.4,32.83897342]
[1754080982981,4.552,3522.5,3522.4,26.74683518]
[1754080983194,4.552,3522.5,3522.4,40.04048218]
[1754080983706,4.552,3522.5,3522.4,39.48653418]
[1754080983911,6.818,3523.9,3522.5,3.0]
[1754080984097,4.553,3523.8,3523.7,14.75954104]
[1754080984421,4.553,3523.8,3521.9,2.83930363]
[1754080984422,5.6901,3523.8,3521.9,2.83930363]
[1754080984585,0.55,3523.7,3522.9,2.83852978]
[1754080984786,2.83800872,3523.6,3523.1,3.0]
[1754080985010,4.557,3523.5,3523.0,2.83848895]
[1754080985316,4.557,3523.5,3523.0,3.0]
[1754080985317,2.71860087,3523.4,3523.0,3.0]
[1754080985493,3.16000087,3523.4,3522.9,3.063501]
[1754080985805,5.20375126,3523.3,3522.9,3.063501]
[1754080986121,0.79450087,3523.4,3522.2,0.4495]
[1754080986122,2.83841462,3523.1,3522.3,7.955258]
[1754080986273,6.4791,3523.2,3522.6,2.83880746]
[1754080986477,0.72736009,3523.1,3522.9,6.596191]
[1754080987110,4.555,3523.2,3522.9,11.482801]
[1754080987412,4.555,3523.2,3522.9,7.677891]
[1754080987623,4.555,3523.2,3522.9,2.83856284]
[1754080987909,4.555,3523.2,3522.9,13.682801]
[1754080988116,4.555,3523.2,3522.9,12.71643847]
[1754080988317,1.9241,3524.2,3523.2,3.0]
[1754080988486,5.34651,3523.7,3523.0,2.3943]
[1754080988833,2.83811109,3523.5,3522.7,3.0]
[1754080988981,4.551,3523.4,3523.1,3.0]
[1754080989181,7.57735554,3523.4,3523.3,3.0]
[1754080989383,7.57735554,3523.4,3522.8,2.83858962]
[1754080989384,10.41552669,3523.4,3523.1,3.0]
[1754080989623,7.57735554,3523.4,3522.9,3.0]
[1754080989791,1.04154722,3523.3,3523.1,3.0]
[1754080990112,4.551,3523.4,3523.3,3.0]
[1754080990314,4.549,3523.4,3523.2,10.683398]
[1754080990500,4.549,3523.4,3523.3,32.88988223]
[1754080990810,4.549,3523.4,3523.3,6.011739]
[1754080991227,4.549,3523.4,3523.3,3.0]
[1754080991902,9.95857767,3523.4,3523.3,3.0]
[1754080992101,7.12041,3523.4,3523.3,3.0]
[1754080992310,5.19631,3523.4,3523.3,3.0]
[1754080993803,7.12041,3523.4,3523.3,3.0]
[1754080994022,10.39997767,3523.4,3523.3,3.0]
[1754080994341,7.56181,3523.4,3523.3,3.0]
[1754080994524,0.55,3523.3,3522.9,0.002]
[1754080994732,2.83848992,3523.0,3522.9,0.002]
[1754080995023,7.38648992,3523.0,3522.9,0.002]
[1754080995410,9.75198992,3523.0,3522.9,0.002]
[1754080996643,4.548,3523.0,3522.9,27.8038]
[1754080996814,4.548,3523.0,3522.9,16.500941]
[1754080997340,4.548,3523.0,3522.9,21.15831149]
[1754080997543,4.548,3523.0,3522.9,15.34714749]
[1754080997744,4.548,3523.0,3522.9,3.002]
[1754080997908,4.548,3523.0,3522.9,5.9177]
[1754080998447,2.83785232,3523.8,3523.2,2.83827391]
[1754080998739,5.50758523,3523.7,3523.5,11.244334]
[1754080999041,5.50758523,3523.7,3523.4,11.247134]
[1754080999240,5.50758523,3523.7,3523.3,2.83819507]
[1754080999241,5.50758523,3523.7,3523.5,10.486395]
[1754080999441,5.50758523,3523.7,3523.4,3.0]
[1754080999739,2.83814563,3523.5,3523.0,6.502201]
[1754080999943,4.539,3523.4,3523.0,9.34066632]
[1754081000245,4.539,3523.4,3522.9,0.002]
[1754081000447,4.539,3523.4,3523.0,3.0]
[1754081000618,4.539,3523.4,3523.0,2.83848704]
[1754081000940,4.539,3523.4,3523.1,3.0]
[1754081001146,2.83840935,3523.1,3522.9,0.002]
[1754081001343,1.54323961,3523.4,3523.2,3.0]
[1754081001522,4.538,3523.3,3523.2,3.0]
[1754081001720,4.29199999,3523.5,3523.2,7.397795]
[1754081001922,7.42923704,3525.0,3523.2,7.397795]
[1754081001923,1.8055,3524.8,3523.8,2.8378455]
[1754081002109,4.537,3524.2,3524.0,23.903267]
[1754081002310,4.537,3524.2,3524.1,19.773105]
[1754081002527,0.4537,3524.2,3524.1,9.805039]
[1754081002815,1.8055,3525.0,3524.5,3.0]
[1754081003029,4.544,3524.9,3524.5,3.0]
[1754081003311,4.544,3524.9,3524.5,2.8372787]
[1754081003525,4.544,3524.9,3524.5,3.0]
[1754081003847,0.96278058,3524.8,3524.4,3.0]
[1754081004045,0.96278058,3524.8,3524.5,10.27757]
[1754081004347,2.247,3524.7,3523.9,3.0]
[1754081004523,4.544,3524.6,3524.2,3.0]
[1754081004849,6.3495,3524.6,3524.2,3.0]
[1754081005423,4.544,3524.6,3524.0,9.81537738]
[1754081005610,7.38120595,3524.6,3524.2,3.0]
[1754081005815,0.9628206,3524.5,3524.2,3.0]
[1754081006553,0.9628206,3524.5,3524.0,10.668652]
[1754081006852,2.247,3524.4,3523.9,5.83775523]
[1754081007008,4.537,3524.3,3524.2,10.170955]
[1754081007828,4.537,3524.3,3524.2,5.8375234]
[1754081008031,1.8055,3525.3,3524.3,30.0]
[1754081008229,4.535,3525.1,3524.7,18.99080312]
[1754081008513,4.535,3525.1,3525.0,7.686013]
[1754081008718,4.535,3525.1,3524.8,2.667]
[1754081009058,4.535,3525.1,3524.3,3.0]
[1754081009059,2.83701211,3524.9,3524.3,3.0]
[1754081009351,4.535,3524.8,3524.7,3.0]
[1754081009648,4.535,3524.8,3524.7,5.338295]
[1754081010422,6.782,3524.8,3523.7,8.70087]
[1754081010740,6.782,3524.8,3524.4,3.0]
[1754081011057,0.55,3524.6,3523.2,1.8188]
[1754081011217,6.3365,3524.5,3523.6,3.0]
[1754081011552,1.8055,3524.4,3523.5,1.8188]
[1754081011757,1.8055,3524.4,3523.9,2.83775718]
[1754081012056,0.63365,3524.3,3524.1,3.0]
[1754081012353,4.531,3524.2,3524.1,21.989829]
[1754081012552,4.531,3524.2,3523.8,5.36386208]
[1754081012755,4.531,3524.2,3523.1,2.83836453]
[1754081012756,4.531,3524.2,3524.1,2.83760392]
[1754081012959,4.531,3524.2,3524.1,26.46086692]
[1754081013116,4.531,3524.2,3524.1,24.77034792]
[1754081013318,3.97229029,3525.0,3524.2,19.380546]
[1754081013319,1.1354,3525.0,3524.2,19.380546]
[1754081013634,4.528,3524.9,3524.7,20.90651073]
[1754081013950,4.528,3524.9,3524.8,13.756291]
[1754081014155,4.29199999,3524.9,3524.8,15.31668539]
[1754081014354,4.529,3524.9,3524.8,17.58828539]
[1754081014662,0.001,3525.1,3525.0,27.56703643]
[1754081014838,4.529,3525.1,3525.0,30.56703643]
[1754081015038,4.529,3525.1,3525.0,31.73031643]
[1754081015214,4.529,3525.1,3525.0,12.38920043]
[1754081015411,4.529,3525.1,3525.0,12.84200043]
[1754081016033,4.529,3525.1,3525.0,12.04822643]
[1754081016463,4.529,3525.1,3525.0,9.77662643]
[1754081017066,4.529,3525.1,3525.0,8.274354]
[1754081017522,4.529,3525.1,3525.0,11.11123343]
[1754081017717,4.529,3525.1,3525.0,11.000782]
[1754081017923,4.529,3525.1,3525.0,32.13178443]
[1754081018333,0.001,3525.1,3525.0,34.85661719]
[1754081018932,0.001,3525.1,3525.0,10.83331219]
[1754081019162,0.001,3525.1,3525.0,40.83331219]
[1754081023972,0.001,3525.1,3525.0,34.68971219]
[1754081024172,0.001,3525.1,3525.0,40.83331219]
[1754081025196,0.001,3525.1,3525.0,10.83331219]
[1754081025370,0.001,3525.6,3525.5,32.83647709]
[1754081025567,0.001,3525.6,3525.5,11.96518709]
[1754081025770,0.001,3525.6,3525.5,5.83647709]
[1754081025965,0.001,3525.6,3525.5,9.18605309]
[1754081026179,0.001,3525.6,3525.5,5.83647709]
[1754081026581,0.001,3525.6,3525.5,8.89105309]
[1754081026783,0.001,3525.6,3525.5,12.32121488]
[1754081027087,0.001,3525.6,3525.5,19.75045192]
[1754081027542,0.001,3525.6,3525.5,46.69587592]
[1754081027943,0.001,3525.6,3525.5,33.29959288]
[1754081028180,0.001,3525.6,3525.5,8.46232909]
[1754081028554,0.001,3525.6,3525.5,14.60816709]
[1754081028780,0.001,3525.6,3525.5,14.31992709]
[1754081028981,0.001,3525.6,3525.5,16.12092709]